Cogmind - Beta 14 @@@ ROGUE MODE // 2024.12.18 @ 10:56:51 Player: Adam_the_Great Result: Self-destructed Performance ------------- Evolutions (2) 1000 Regions Visited (4) 800 Robots Destroyed (19) 95 Value Destroyed (639) 639 Prototype IDs (3) 60 Alien Tech Used (0) 0 Bonus (0) 0 TOTAL SCORE: 2594 Bonus ------- None Cogmind --------- Core Integrity 158/550 Matter 300/300 Energy 100/100 System Corruption 0% Temperature Cool (0) Movement Core (100) Ox1 Location -8/Materials Parts ------- > --- POWER (2) -------- (None) > --- PROPULSION (3) --- (None) > --- UTILITY (4) ------ Small Storage Unit Signal Interpreter Hacking Suite > --- WEAPON (2) ------- (None) > --- INVENTORY (8) ---- Weight Redist. System Reaction Control System Shock Absorption System Grenade Launcher Mini Grenade Launcher Peak State ------------ > --- POWER ------------ Light Ion Engine Improved Ion Engine > --- PROPULSION ------- Improved Carbon-fiber Leg Improved Carbon-fiber Leg Improved Carbon-fiber Leg > --- UTILITY ---------- Small Storage Unit Trap Scanner Signal Interpreter Hacking Suite > --- WEAPON ----------- Advanced Beam Rifle Heavy Assault Rifle > --- INVENTORY -------- Improved Carbon-fiber Leg Weight Redist. System Reaction Control System Shock Absorption System Advanced Beam Rifle Grenade Launcher Mini Grenade Launcher [Rating: 31] Favorites ----------- Power Ion Engine Engine Ion Engine Power Core Light Nuclear Core Propulsion Aluminum Leg Leg Aluminum Leg Wheel Armored Wheel Utility Small Storage Unit Device Sensor Array Storage Small Storage Unit Processor Signal Interpreter Hackware Hacking Suite Weapon Light Assault Rifle Energy Gun Medium Laser Ballistic Gun Light Assault Rifle Launcher Grenade Launcher Build | -11 -10 -10 -9 -8 ------- Run | Yrd Mat Min Mat Mat Slots Evolved 4 | . . . 2 2 Power 1 | . . . . 1 Propulsion 1 | . . . 1 . Utility 2 | . . . 1 1 Weapon . | . . . . . Parts Attached 26 | 6 2 . 4 14 Power 6 | 1 1 . . 4 Engine 5 | 1 1 . . 3 Core 1 | . . . . 1 Reactor . | . . . . . Propulsion 8 | 2 . . 2 4 Treads . | . . . . . Leg 6 | 2 . . . 4 Wheel 2 | . . . 2 . Hover . | . . . . . Flight . | . . . . . Utility 5 | 1 1 . 1 2 Device 2 | . . . 1 1 Storage 1 | 1 . . . . Processor 1 | . 1 . . . Hackware 1 | . . . . 1 Protection . | . . . . . Artifact . | . . . . . Weapon 7 | 2 . . 1 4 Energy Gun 4 | 1 . . 1 2 Energy Cannon . | . . . . . Ballistic Gun 2 | 1 . . . 1 Ballistic Cannon . | . . . . . Launcher 1 | . . . . 1 Special Weapon . | . . . . . Impact Weapon . | . . . . . Slashing Weapon . | . . . . . Piercing Weapon . | . . . . . Special Melee Weapon . | . . . . . Unidentified Prototypes 1 | . . . 1 . Parts Lost 14 | . . . . 14 Power 4 | . . . . 4 Propulsion 4 | . . . . 4 Utility 2 | . . . . 2 Weapon 4 | . . . . 4 Highest Loss Streak 5 | . . . . 5 To Critical Strikes . | . . . . . Average Slot Usage (%) 90 | . 95 100 88 81 Engine 11 | . 14 14 11 9 Leg 22 | . 28 28 20 17 Wheel 1 | . . . 1 3 Device 5 | . . . 11 9 Storage 11 | . 14 14 11 9 Processor 11 | . 9 14 11 9 Hackware 2 | . . . . 6 Energy Gun 10 | . 14 14 11 4 Ballistic Gun 11 | . 14 14 11 8 Peak Build Rating 31 | 6 7 7 13 31 Average Rating 12 | 4 6 7 11 22 On Entrance 6 | . 6 7 7 13 Naked Turns . | . . . . . Heaviest Build 23 | 11 13 13 14 23 Greatest Support 54 | 20 20 20 28 54 Greatest Overweight (x) 3 | . . . . 3 Average Overweight (x) . | . . . . . Largest Inventory Capacity 8 | 8 8 8 8 8 Average Capacity 7 | 6 8 8 8 8 Most Carried 8 | 4 3 5 8 8 Average Carried 4 | . 2 3 7 6 Final Capacity 8 | 8 8 8 8 8 Final Carried 7 | . 3 5 7 5 Class Distribution -------------------- 97% | Mutant Dominant Class ---------------- Mutant | -10/Materials Mutant | -10/Mines Mutant | -9/Materials Mutant | -8/Materials Resources | -11 -10 -10 -9 -8 ----------- Run | Yrd Mat Min Mat Mat Matter Collected 598 | 259 18 17 31 273 Remotely . | . . . . . Salvage Created 672 | . 81 45 165 381 Parts 41 | . 2 7 8 24 Haulers Intercepted . | . . . . . Recyclers Shooed . | . . . . . Parts Field Recycled . | . . . . . Retrieved Matter . | . . . . . Parts Self-Destructed . | . . . . . Prevented . | . . . . . Kills | -11 -10 -10 -9 -8 ------- Run | Yrd Mat Min Mat Mat Combat Hostiles Destroyed 18 | . 2 3 3 10 Guns 16 | . 2 3 3 8 AOE 2 | . . . . 2 Classes Destroyed 4 | . 1 1 1 1 Operator 1 | . . . . 1 Swarmer 5 | . . 3 . 2 Grunt 7 | . 2 . . 5 Sentry 6 | . . . 3 3 Best Kill Streak 3 | . 2 3 2 3 Combat Bots Only 3 | . 2 3 2 3 Max Kills in Single Turn 2 | . 1 1 1 2 Gunslinging 1 | . . . . 1 Exploded 1 | . . . . 1 Melee . | . . . . . Uniques/NPCs Destroyed . | . . . . . Combat | -11 -10 -10 -9 -8 -------- Run | Yrd Mat Min Mat Mat Hostile Shots Fired 266 | . 15 25 22 204 Missed 94 | . 6 8 9 71 Damage Taken 2054 | . 87 136 185 1646 Core 477 | . 37 35 13 392 Absorbed by Shields . | . . . . . Core Remaining (%) 89 | 100 . 71 96 . Volleys Fired 80 | . 7 7 13 53 Largest 2 | . 2 2 2 2 Hottest 84 | . 70 70 81 84 Shots Fired 127 | . 14 14 26 73 Gun 124 | . 14 14 26 70 Cannon . | . . . . . Launcher 3 | . . . . 3 Special . | . . . . . Kinetic 80 | . 7 7 13 53 Thermal 44 | . 7 7 13 17 Explosive 3 | . . . . 3 Electromagnetic . | . . . . . Robot Hit Streak 7 | . 4 3 7 7 Robot Miss Streak 7 | . 1 3 2 7 Penetration Max . | . . . . . Secondary Targets 2 | . . . 1 1 Max Gunslinging Chain 1 | . . . 1 1 Shots Hit Robots 82 | . 11 7 18 46 Core Hits 34 | . 5 4 7 18 Critical Kills . | . . . . . Critical Parts Destroyed 1 | . . . . 1 Critical Strikes 2 | . . . 1 1 Burn 1 | . . . 1 . Destroy 1 | . . . . 1 Melee Attacks . | . . . . . Impact . | . . . . . Slashing . | . . . . . Piercing . | . . . . . Sneak Attacks . | . . . . . Combat Hostiles . | . . . . . Follow-up Attacks . | . . . . . Damage Inflicted 1402 | . 109 73 233 987 Guns 1125 | . 109 73 233 710 Cannons . | . . . . . Explosions 274 | . . . . 274 Melee . | . . . . . Ramming 3 | . . . . 3 Kinetic 643 | . 46 34 73 490 Thermal 482 | . 63 39 160 220 Explosive 274 | . . . . 274 Electromagnetic . | . . . . . Impact . | . . . . . Slashing . | . . . . . Piercing . | . . . . . Highest Corruption . | . . . . . Average Corruption . | . . . . . Corruption Purged . | . . . . . Corruption Blocked . | . . . . . Overload Shots . | . . . . . Overflow Damage . | . . . . . Projectiles . | . . . . . Explosions . | . . . . . Melee . | . . . . . Knockbacks . | . . . . . Impact . | . . . . . Kinetic . | . . . . . Secondary . | . . . . . Self-Inflicted Damage 1 | . . . . 1 Shots . | . . . . . Rammed 1 | . . . . 1 Targets Rammed 1 | . . . . 1 Kicked . | . . . . . Crushed . | . . . . . Highest Temperature 217 | . 140 92 175 217 Average Temperature 68 | . 68 36 68 78 Received Heat Transfer 615 | . 30 . 63 522 Effects 1 | . . . . 1 Energy Bleed 1 | . . . . 1 Siege Activations . | . . . . . Robots Corrupted . | . . . . . Combat Hostiles . | . . . . . Parts Fried . | . . . . . Impact Corruptions . | . . . . . Robots Melted . | . . . . . Combat Hostiles . | . . . . . Parts Melted 3 | . . 1 1 1 Heat Transferred 1073 | . 185 111 370 407 Parts Sabotaged . | . . . . . Parts Stolen . | . . . . . Parts Stripped . | . . . . . Power Chain Reactions . | . . . . . Alert | -11 -10 -10 -9 -8 ------- Run | Yrd Mat Min Mat Mat Peak Influence 236 | . 70 97 135 236 Initial 27 | . . 27 . . Average 68 | . 26 65 67 94 Maximum Alert Level 1 | . . . . 1 Low Security (%) 95 | 100 100 100 100 84 Level 1 4 | . . . . 15 Level 2 . | . . . . . Level 3 . | . . . . . Level 4 . | . . . . . Level 5 . | . . . . . High Security . | . . . . . Max Security . | . . . . . Squads Dispatched 4 | . . . . 4 Investigation 1 | . . . . 1 Extermination . | . . . . . Reinforcement 1 | . . . . 1 Assault . | . . . . . Garrison 2 | . . . . 2 Intercept . | . . . . . Searches Triggered . | . . . . . Construction Impeded . | . . . . . Haulers Reinforced . | . . . . . Active Scanning Responses . | . . . . . Cargo Convoy Interrupts . | . . . . . Stealth | -11 -10 -10 -9 -8 --------- Run | Yrd Mat Min Mat Mat Distress Signals 1 | . 1 . . . Communications Jammed . | . . . . . Distress Signals . | . . . . . Times Spotted 35 | . 7 3 4 21 Peak Tracking Total 8 | . 6 3 2 8 Tactical Retreats 1 | . . . . 1 Traps | -11 -10 -10 -9 -8 ------- Run | Yrd Mat Min Mat Mat Traps Triggered . | . . . . . Indirectly . | . . . . . Trap Hack Attempts . | . . . . . Triggered . | . . . . . Disarmed 1 | . . . . 1 Reprogrammed . | . . . . . Reused . | . . . . . Traps Extracted . | . . . . . Installed . | . . . . . Triggered . | . . . . . Machines | -11 -10 -10 -9 -8 ---------- Run | Yrd Mat Min Mat Mat Machines Disabled . | . . . . . Max in Single Turn . | . . . . . Machines Repaired . | . . . . . Machines Dismantled . | . . . . . Machines Sabotaged . | . . . . . Overloaded Fab Kills . | . . . . . Hacking | -11 -10 -10 -9 -8 --------- Run | Yrd Mat Min Mat Mat Machines Accessed 4 | . 2 1 . 1 Terminals 4 | . 2 1 . 1 Fabricators . | . . . . . Repair Stations . | . . . . . Recycling Units . | . . . . . Scanalyzers . | . . . . . Garrison Access . | . . . . . Total Hacks 13 | . 5 1 . 7 Successful 10 | . 4 1 . 5 Failed 3 | . 1 . . 2 Catastrophic . | . . . . . Database Lockouts . | . . . . . Manual . | . . . . . Terminals 13 | . 5 1 . 7 Fabricators . | . . . . . Repair Stations . | . . . . . Recycling Units . | . . . . . Scanalyzers . | . . . . . Garrison Access . | . . . . . Terminal Hacks 10 | . 4 1 . 5 Record 1 | . . . . 1 Robot Analysis 1 | . 1 . . . Prototype ID Bank 1 | . 1 . . . Alert Level 2 | . . 1 . 1 Disarm Traps 1 | . . . . 1 Dispatch Records 1 | . . . . 1 Maintenance Status 2 | . 1 . . 1 Recall Investigation 1 | . 1 . . . Fabricator Hacks . | . . . . . Repair Station Hacks . | . . . . . Recycling Unit Hacks . | . . . . . Scanalyzer . | . . . . . Garrison Access Hacks . | . . . . . Unauthorized Hacks . | . . . . . Terminals . | . . . . . Fabricators . | . . . . . Repair Stations . | . . . . . Recycling Units . | . . . . . Scanalyzers . | . . . . . Garrison Access . | . . . . . Data Cores Recovered . | . . . . . Used . | . . . . . Hacking Detections 3 | . 2 . . 1 Full Trace Events 2 | . 1 . . 1 Feedback Events . | . . . . . Feedback Blocked . | . . . . . Robot Schematics Acquired . | . . . . . Robots Built . | . . . . . Authchips . | . . . . . Time . | . . . . . Total Robot Build Rating . | . . . . . Part Schematics Acquired . | . . . . . Parts Built . | . . . . . Authchips . | . . . . . Time . | . . . . . Total Part Build Rating . | . . . . . Parts Repaired . | . . . . . Time . | . . . . . Parts Recycled . | . . . . . Recycled Matter . | . . . . . Retrieved Matter . | . . . . . Retrieved Components . | . . . . . Parts Scanalyzed . | . . . . . Part Schematics Acquired . | . . . . . Parts Damaged . | . . . . . Bothacking | -11 -10 -10 -9 -8 ------------ Run | Yrd Mat Min Mat Mat Used RIF Installer . | . . . . . Robots Hacked . | . . . . . Non-combat . | . . . . . Combat . | . . . . . Robot Hacks Applied . | . . . . . Relay Couplers Released . | . . . . . Fabnet Peak Effective % . | . . . . . Robots Rewired . | . . . . . Allies Hacked . | . . . . . Hacks Repelled . | . . . . . Allies | -11 -10 -10 -9 -8 -------- Run | Yrd Mat Min Mat Mat Total Allies . | . . . . . Largest Group . | . . . . . Highest-Rated Group . | . . . . . Highest-Rated Ally . | . . . . . Total Orders . | . . . . . Ally Attacks . | . . . . . Total Damage . | . . . . . Kills . | . . . . . Allies Corrupted . | . . . . . Allies Melted . | . . . . . Intel | -11 -10 -10 -9 -8 ------- Run | Yrd Mat Min Mat Mat Robot Analysis Total 1 | . 1 . . . Derelict Logs Recovered 1 | . . 1 . . Drone Launches . | . . . . . Drone Recoveries . | . . . . . Exploration | -11 -10 -10 -9 -8 ------------- Run | Yrd Mat Min Mat Mat Turns Passed 1790 | 44 207 577 430 532 Spaces Moved 1292 | 31 151 459 323 328 Core 22 | 6 . . . 16 Treads . | . . . . . Legs 1149 | 25 151 459 289 225 Wheels 121 | . . . 34 87 Hover . | . . . . . Flight . | . . . . . Fastest Speed 50 | 50 120 120 95 95 Average Speed 117 | 106 120 120 117 115 Slowest Speed 200 | 120 120 120 120 200 Overloaded Moves . | . . . . . Propulsion Burnouts . | . . . . . Robots Hopped . | . . . . . Cave-ins Triggered . | . . . . . Exploration Rate (%) 31 | 3 28 79 24 25 Regions Visited 4 Branch Regions 1 Pre-discovered Areas . | . . . . . Known Exits Taken 3 | . 1 1 1 . Unknown Exits Taken 1 | 1 . . . . Scrap Searched 2 | . . 2 . . Spaces Dug . | . . . . . Terrain Destroyed 14 | . . . . 14 Melee . | . . . . . Projectile . | . . . . . AOE 14 | . . . . 14 Terrain Rammed . | . . . . . Walls Destroyed . | . . . . . Machines Disabled . | . . . . . Actions | -11 -10 -10 -9 -8 --------- Run | Yrd Mat Min Mat Mat Total 1440 | 42 163 472 352 411 Wait 5 | . . 5 . . Move 1288 | 30 150 458 322 328 Hop . | . . . . . Pick Up 31 | 6 4 2 8 11 Fast Attach . | . . . . . Attach 20 | 6 1 . 2 11 Detach . | . . . . . Swap 6 | . 1 . 2 3 Drop 9 | . . . 5 4 Fire 80 | . 7 7 13 53 Melee . | . . . . . Ram 1 | . . . . 1 Kick . | . . . . . Crush . | . . . . . Escape Stasis . | . . . . . Rewire . | . . . . . Trap . | . . . . . Miscellaneous . | . . . . . Route ------- -11/Scrapyard -10/Materials -10/Mines (discovered 2 exits: *Mat x2) -9/Materials (discovered 2 exits: *Mat / Min) -8/Materials History --------- Turn | Location | Event 3 | -11/Scrapyard | Discovered new exit (range 16) 45 | -11/Scrapyard | Entered Materials 225 | -10/Materials | Discovered new exit (range 8) 250 | -10/Materials | Identified exit to Mines 252 | -10/Materials | Entered Mines 276 | -10/Mines | Met a Derelict bent on vengeance 315 | -10/Mines | Build established: Mutant 580 | -10/Mines | Discovered new exit (range 15) 606 | -10/Mines | Identified exit to Materials 808 | -10/Mines | Discovered exit to Materials (range 7) 829 | -10/Mines | Entered Materials 829 | -9/Materials | Evolved 2 slots: Propulsion x1, Utility x1 830 | -9/Materials | Identified exit to Mines 1186 | -9/Materials | Discovered new exit (range 4) 1189 | -9/Materials | Identified exit to Materials 1259 | -9/Materials | Entered another Materials area 1259 | -8/Materials | Evolved 2 slots: Power x1, Utility x1 1582 | -8/Materials | Lost 3 parts (2p1w) 1650 | -8/Materials | Garrison activated, responded to threat 1732 | -8/Materials | Lost 3 parts (1p2n) 1765 | -8/Materials | Core integrity fell below 50% 1791 | -8/Materials | Self-destructed Last Messages --------------- 01708_ Acquired 12 matter. 01709_ K-01 Serf collects debris. 01710_ Acquired 10 matter. 01710_ R-06 Scavenger collects Flight Unit. 01712_ K-01 Serf collects debris. 01737_ Trap Scanner destroyed. 01739_ K-01 Serf collects debris. 01749_ Acquired 5 matter. 01750_ K-01 Serf collects debris. 01754_ M-13 Machinist repairs S-10 Pest. 01762_ Hvy. Assault Rifle destroyed. 01762_ Imp. Carbon-fiber Leg destroyed. 01765_ R-06 Scavenger destroyed. 01769_ R-06 Scavenger collects Com. Wheel. 01770_ Acquired Lgt. Ion Engine. 01773_ S-10 Pest destroyed. 01777_ Adv. Beam Rifle destroyed. 01789_ Slammed into S-10 Pest. 01789_ Slug penetrates Neutrino Reactor. 01789_ Lgt. Ion Engine destroyed. Map ----- +----------------------------------------------------+ | ????????# #??????##????????? | | ?######## ####### ###??????? | | ?# # """ # """ #??????? | | ?#]] # """ # "R" !// #??????? | | ?#] ! +% """ # " " !/! #??????? | | ?# # # !//! #??????? | | ?# # + """%= #??????? | | ?# # """ # "" [! #??????? | | ###+##### """ # """ ! #??????? | | # + """ # ] #??????? | | # """ # ###########??????? | | # "Y" # #????????????????? | | # # #????????????????? | | # | # ######???????????? | | #= # ! #???????????? | | # # =[! + ????????? | | ######### "T" *%[ # ] ???????? | | ###################* #???????????? | | # #???# # ####### ? | | # #???# g # # | | # #???# """ + | | # #???# """ # # | | # #####! """ ## ######## ? | | # # # ## #????????? ##? | | # + s/ ## #????????????? | | # # @# #? #????????????? | | # # ######### #????????????? | | # # ######### #????????????? | | # # ####+#???????? | | # + ^ ^ #?????#?? | | # # ^ ^ #??## #?? | | ?#########+####### """ ###T# #?? | | ???????# ####^^""" #?? | | ???????# #### """ #?? | | ???????# + #?? | | ???????# # #?? | | ???????# # #?? | | ???????# + #####+##### #?? | | ???????######## =## ##?# #??? #?? | | ??????????# = ## ##?# * #????#?? | | ??????????#!! //## ##?# #??????? | | ??????????#! //## #??# #??????? | | ??????????######### #??# #??????? | | ????????????????###/####!! #??????? | | ????????????????# #!! #??????? | | ????????????????# ] #####??????? | | ????????????????# #??????????? | | ????????????????# #??????????? | | ????????????????# #??????????? | | ????????????????# #??????????? | +----------------------------------------------------+ Best States ------------- Heat Dissipation 31 Energy Generation 17 Energy Capacity 415 Matter Stores 300 Matter Capacity 300 Sight Range 16 Robot Scan Range 14 Terrain Scan Density 10 Evasion (%) 55 Offensive Hacking 10 Item Schematics ----------------- None Robot Schematics ------------------ None Fabricated ------------ Nothing Alien Tech Used ----------------- None Achievements -------------- None Challenges ------------ None Game ------ Seed TimingCentriumCompanion Manual? 0 Play Time 00:20:35 Cumulative 6.0 hours Start 2024.12.18 @ 10:37:18 End 2024.12.18 @ 10:56:51 Sessions 1 Manual Loads 0 Difficulty Rogue Special Mode None Game No. 6 Rogue 6 Adventurer 0 Explorer 0 Win Type - Total 0 Types 0/0/0/0/0/0/0/0/0 Lore% 8 Gallery% 11 Achievement% 11 Wizard Run 0 Options --------- Layout 0 ASCII 0 Keyboard 0 Movement Mouse Keybinds 0 Fullscreen 1 Font 24/Smallcaps Map View 76x50 Zoom Use 0% Tactical HUD 1 Map Filters NONE Filters NONE Steam 1 RUN: 49f3874d-b50c-4ada-bd01-d8cf268ba4e6